bitfinex/quotes_ETHUSD_20250725
["timestamp","ask_amount","ask_price","bid_price","bid_amount"]
[1753477496698,2.539,3698.4,3698.1,0.9205]
[1753477496898,2.539,3698.3,3698.1,0.9205]
[1753477497398,2.539,3698.3,3698.2,0.1352]
[1753477498728,2.539,3698.3,3698.2,1.0557]
[1753477499095,2.539,3698.3,3698.2,0.1352]
[1753477500337,3.465,3698.8,3698.2,1.0557]
[1753477500542,3.0,3698.6,3698.2,1.0557]
[1753477500743,3.0,3698.4,3698.2,0.9205]
[1753477500947,2.539,3698.3,3698.2,0.9205]
[1753477501123,2.539,3698.3,3698.2,1.0557]
[1753477502456,2.539,3698.3,3698.2,0.1352]
[1753477503343,0.465,3698.5,3698.2,0.1352]
[1753477503656,0.465,3698.5,3697.9,0.9205]
[1753477503657,3.003,3698.4,3697.9,0.9205]
[1753477503820,0.465,3698.3,3697.7,0.7974]
[1753477504019,0.9164,3698.3,3697.7,0.7974]
[1753477504356,0.9164,3698.3,3698.2,0.1352]
[1753477504532,3.4544,3698.3,3698.2,0.1352]
[1753477504850,4.2747,3698.3,3698.2,0.1352]
[1753477506944,2.70409632,3698.1,3697.4,5.0284]
[1753477507259,9.97864505,3698.3,3698.0,0.1352]
[1753477507260,3.62044946,3698.2,3698.0,0.1352]
[1753477507459,2.538,3698.1,3698.0,0.1352]
[1753477507814,6.4544,3698.1,3698.0,0.1352]
[1753477508018,9.15849129,3698.1,3698.0,0.1352]
[1753477508214,6.4544,3698.1,3698.0,0.1352]
[1753477509842,9.15849129,3698.1,3697.0,3.53329572]
[1753477510053,3.62063237,3698.0,3697.8,0.1352]
[1753477510258,2.537,3697.9,3697.8,0.1352]
[1753477510626,3.4534,3697.9,3697.8,0.1352]
[1753477512235,2.537,3697.9,3697.8,1.0557]
[1753477514865,2.70368219,3698.7,3697.8,1.0557]
[1753477515063,2.70351568,3698.9,3697.8,1.0557]
[1753477515064,2.537,3698.6,3698.0,2.70416441]
[1753477515263,2.537,3698.5,3698.2,2.70401817]
[1753477515467,3.619734,3699.2,3698.5,0.1352]
[1753477515656,2.537,3699.1,3698.9,0.1352]
[1753477515864,3.0,3699.0,3698.9,0.1352]
[1753477516047,3.002,3699.1,3698.9,0.1352]
[1753477516586,2.537,3699.2,3698.9,0.1352]
[1753477516776,2.537,3699.4,3699.0,1.33069312]
[1753477516976,3.0,3699.3,3699.1,0.1352]
[1753477517278,3.0,3699.3,3699.0,0.9205]
[1753477517575,3.0,3699.3,3699.2,0.1352]
[1753477517937,2.537,3699.4,3699.2,0.1352]
[1753477518655,0.465,3699.3,3699.2,0.1352]
[1753477520994,0.4916,3699.3,3699.2,0.1352]
[1753477521691,2.537,3699.4,3699.2,0.1352]
[1753477522060,3.0286,3699.4,3699.2,0.1352]
[1753477522796,0.9469,3699.3,3699.2,0.1352]
[1753477524497,0.97396596,3699.3,3699.2,0.1352]
[1753477524666,3.67718008,3699.3,3699.2,0.1352]
[1753477525207,7.44411412,3699.3,3699.2,0.1352]
[1753477525799,13.59227384,3699.3,3699.2,0.1352]
[1753477525986,5.70330184,3699.2,3698.9,0.1352]
[1753477526296,5.23836973,3699.1,3698.9,0.1352]
[1753477526504,2.535,3699.1,3698.9,0.1352]
[1753477526667,5.23836098,3699.1,3698.9,0.1352]
[1753477526868,0.9469,3699.0,3698.9,0.1352]
[1753477527967,2.535,3699.1,3698.9,0.1352]
[1753477528677,0.4916,3699.0,3698.9,0.1352]
[1753477529812,2.535,3699.1,3698.9,0.1352]
[1753477530161,0.4916,3699.0,3698.9,0.1352]
[1753477530671,2.535,3699.1,3698.9,0.1352]
[1753477530980,2.534,3699.1,3699.0,0.7729]
[1753477531169,2.534,3699.3,3699.0,0.7729]
[1753477531373,2.534,3699.3,3699.1,0.9111]
[1753477531681,2.534,3699.3,3699.2,0.1352]
[1753477532602,3.0,3699.4,3699.2,1.0463]
[1753477532899,3.0,3699.4,3699.2,0.1352]
[1753477533869,0.4916,3699.3,3699.2,0.1352]
[1753477534200,0.9469,3699.3,3699.2,0.1352]
[1753477536015,3.0,3699.1,3699.0,0.1352]
[1753477536183,5.534,3699.1,3699.0,0.1352]
[1753477536387,6.0256,3699.1,3699.0,0.1352]
[1753477536773,3.0,3699.9,3699.1,0.7585]
[1753477537002,3.0,3699.7,3699.2,0.9111]
[1753477537182,3.0,3699.7,3699.4,0.1352]
[1753477537378,3.0,3699.7,3699.5,0.471]
[1753477537613,5.533,3699.6,3699.5,0.471]
[1753477537908,3.0,3699.5,3699.4,0.5753]
[1753477538121,2.533,3699.6,3699.4,1.0463]
[1753477538510,3.0,3699.5,3699.4,1.0463]
[1753477541312,3.0,3699.5,3699.4,0.1352]
[1753477541516,3.0,3699.5,3697.6,0.1352]
[1753477541517,0.8119,3698.3,3697.6,0.1352]
[1753477541813,0.8119,3698.3,3696.6,0.7686]
[1753477541814,5.70425514,3697.9,3697.5,0.1352]
[1753477541986,2.70445694,3697.6,3697.5,0.1352]
[1753477542308,2.533,3697.6,3697.5,0.1352]
[1753477542676,5.23745694,3697.6,3697.5,0.1352]
[1753477542911,6.18435694,3697.6,3697.5,0.1352]
[1753477543412,3.0,3697.9,3697.5,0.1352]
[1753477543616,2.533,3697.8,3697.5,0.1352]
[1753477543780,2.70445694,3697.6,3697.5,0.1352]
[1753477543984,5.23745694,3697.6,3697.5,0.1352]
[1753477544179,12.33251666,3697.6,3697.5,0.1352]
[1753477544490,2.70477896,3697.2,3696.6,1.2396]
[1753477544690,2.533,3697.1,3696.6,1.2396]
[1753477544912,5.23788215,3697.1,3696.6,1.2396]
[1753477545083,3.0246,3697.1,3697.0,0.1352]
[1753477545282,5.72942269,3697.1,3697.0,0.1352]
[1753477545503,8.72942269,3697.1,3697.0,0.1352]
[1753477545702,8.72942269,3697.1,3693.9,3.896]
[1753477545703,2.7054813,3696.2,3695.7,1.3001]
[1753477545910,2.533,3696.1,3695.7,1.3001]
[1753477546236,6.14815972,3696.7,3695.7,1.3001]
[1753477546237,2.533,3696.0,3695.8,3.61687412]
[1753477546439,2.533,3695.9,3695.8,2.70577412]
[1753477546652,2.533,3695.9,3695.8,3.32985351]
[1753477547109,2.533,3695.9,3695.8,4.24095351]
[1753477548040,3.0,3697.1,3695.8,4.24095351]
[1753477548041,2.533,3696.4,3695.8,1.53517939]
[1753477548222,0.4553,3697.6,3696.4,0.8291]
[1753477548223,2.533,3696.6,3696.4,0.8291]
[1753477548404,2.533,3696.8,3696.5,3.61636173]
[1753477548609,2.533,3696.8,3696.6,0.9111]
[1753477549037,2.533,3696.8,3696.7,2.70511537]
[1753477549241,2.533,3696.8,3696.7,3.61621537]
[1753477550556,2.533,3696.8,3696.7,0.9111]
[1753477551355,2.533,3696.8,3696.4,3.53436386]
[1753477551561,2.533,3696.8,3696.4,0.8291]
[1753477551762,2.9947,3696.8,3696.4,0.8291]
[1753477552143,2.9947,3696.8,3695.5,5.70596898]
[1753477552144,2.533,3696.8,3696.1,0.7887]
[1753477552345,0.7566,3696.6,3695.7,0.7887]
[1753477552546,0.9243,3696.5,3695.7,0.7887]
[1753477552853,2.9947,3696.4,3695.7,0.7887]
[1753477553461,5.70003644,3696.4,3695.7,0.7887]
[1753477553633,2.70552584,3696.2,3695.7,0.7887]
[1753477554236,0.4617,3696.2,3695.7,0.7887]
[1753477554740,3.16719392,3696.2,3695.7,0.7887]
[1753477555054,0.4617,3696.2,3695.7,0.7887]
[1753477555574,0.4617,3696.2,3696.1,0.1352]
[1753477556364,2.533,3696.4,3696.1,0.1352]
[1753477556759,5.23833942,3696.4,3695.8,2.70575128]
[1753477556976,5.70003942,3696.4,3696.3,0.1352]
[1753477557176,6.16263942,3696.4,3696.3,0.1352]
[1753477557891,3.4573,3696.4,3696.3,0.1352]
[1753477558068,6.16263492,3696.4,3696.3,0.1352]
[1753477560293,5.23833492,3696.4,3696.3,0.1352]
[1753477560702,5.70003492,3696.4,3696.3,0.1352]
[1753477561003,2.533,3696.4,3696.3,0.1352]
[1753477561204,5.23833492,3696.4,3696.3,0.1352]
[1753477561572,2.533,3696.4,3696.3,0.1352]
[1753477561810,2.9947,3696.4,3696.3,0.1352]
[1753477562656,6.16263492,3696.4,3696.3,0.1352]
[1753477563002,2.70562881,3696.0,3695.4,0.4586]
[1753477563157,2.533,3695.9,3695.4,1.2354]
[1753477563587,2.9947,3695.9,3695.8,0.1352]
[1753477564112,2.70608063,3695.4,3694.8,0.7768]
[1753477564263,2.533,3695.3,3694.8,3.48329928]
[1753477564566,2.9947,3695.3,3694.8,3.94189928]
[1753477564765,2.9947,3695.3,3694.8,1.7182]
[1753477564961,2.9947,3695.3,3694.8,4.42470575]
[1753477565191,2.9947,3695.3,3694.9,2.70643304]
[1753477565494,2.533,3695.3,3694.9,0.9414]
[1753477566269,2.533,3695.3,3694.9,3.64781217]
[1753477567098,2.533,3695.3,3695.0,3.18910711]
[1753477567300,2.533,3695.3,3695.0,2.70630711]
[1753477567454,1.55837,3695.8,3694.8,3.48329946]
[1753477567455,2.533,3695.2,3695.1,3.64767785]
[1753477567656,2.533,3695.7,3695.2,2.70616515]
[1753477567955,2.533,3695.7,3695.3,0.9414]
[1753477568294,2.533,3695.7,3695.4,1.7098]
[1753477568695,2.533,3695.7,3695.4,4.41582115]
[1753477569381,0.4617,3696.1,3695.4,4.41582115]
[1753477569382,3.4617,3696.1,3695.4,4.41582115]
[1753477569589,0.4617,3696.1,3695.5,2.70593251]
[1753477569776,2.533,3696.0,3695.5,0.92437325]
[1753477569971,2.533,3696.0,3695.6,0.9414]
[1753477570160,2.533,3696.0,3695.7,2.70580338]
[1753477570767,2.533,3696.0,3695.6,0.9414]
[1753477570768,2.533,3696.0,3695.6,3.6472992]
[1753477571488,2.533,3696.0,3695.6,0.9414]
[1753477571670,2.533,3696.0,3695.6,3.64731706]
[1753477571870,2.533,3696.0,3695.7,2.70584473]
[1753477572552,0.9243,3696.3,3695.6,0.9414]
[1753477572553,0.9243,3696.3,3695.6,3.64729189]
[1753477572751,2.533,3696.2,3695.6,3.64729189]
[1753477573355,2.533,3696.2,3695.6,0.9414]
[1753477573588,2.9947,3696.2,3695.7,2.70581985]
[1753477573885,5.9956,3696.2,3696.1,0.1352]
[1753477574492,6.4573,3696.2,3696.1,0.1352]
[1753477576994,5.9947,3696.2,3696.1,0.1352]
[1753477577204,5.9947,3696.2,3695.4,0.7684]
[1753477577205,9.1627813,3696.2,3695.4,0.7684]
[1753477577410,0.02706596,3696.1,3696.0,0.1352]
[1753477577593,0.9243,3696.1,3696.0,0.1352]
[1753477578584,3.4563,3696.1,3696.0,0.1352]
[1753477579716,0.9243,3696.1,3696.0,0.1352]
[1753477579908,3.4563,3696.1,3696.0,0.1352]
[1753477581437,0.4617,3696.1,3696.0,0.1352]
[1753477581769,2.532,3696.4,3696.1,0.7757]
[1753477582037,2.532,3696.4,3696.2,3.62047692]
[1753477582330,2.532,3696.4,3696.3,3.75560811]
[1753477582531,4.3557,3697.2,3696.6,2.70516299]
[1753477582696,2.532,3697.1,3696.6,2.70516299]
[1753477582892,3.0,3697.0,3696.6,2.70516299]
[1753477583232,3.0,3697.0,3696.5,2.70523111]
[1753477583406,0.4577,3697.2,3696.9,0.1352]
[1753477583616,2.9897,3697.1,3696.9,0.1352]
[1753477583825,2.9897,3697.1,3696.5,2.70523111]
[1753477584028,0.4577,3697.0,3696.5,2.70523111]
[1753477584203,3.4577,3697.0,3696.5,2.70523111]
[1753477584413,3.4577,3697.0,3696.9,0.1352]
[1753477587350,3.0,3697.0,3696.9,0.1352]
[1753477587859,3.4577,3697.0,3696.9,0.1352]
[1753477588225,3.93,3697.0,3696.9,0.1352]
[1753477589067,3.4577,3697.0,3696.9,0.1352]
[1753477590230,2.531,3697.0,3696.9,0.1352]
[1753477590426,5.531,3697.0,3696.9,0.1352]
[1753477591161,5.9887,3697.0,3696.9,0.1352]
[1753477594359,3.4577,3697.0,3696.9,0.1352]
[1753477594568,5.9877,3697.0,3696.9,0.1352]
[1753477596383,3.4577,3697.0,3696.9,0.1352]
[1753477596587,0.8154,3697.9,3696.9,3.75516173]
[1753477596881,3.0,3697.7,3697.1,2.70475305]
[1753477597072,2.53,3697.6,3697.1,2.70475305]
[1753477597276,2.53,3697.6,3697.2,3.61972662]
[1753477597588,3.0,3697.6,3697.5,0.1352]
[1753477597885,5.53,3697.6,3697.5,0.1352]
[1753477598587,5.9877,3697.6,3697.5,0.1352]
[1753477599089,5.53,3697.6,3697.5,0.1352]
[1753477600293,5.9877,3697.6,3697.5,0.1352]
[1753477600698,5.53,3697.6,3697.5,0.1352]
[1753477601279,5.9877,3697.6,3697.5,0.1352]
[1753477604411,4.44829852,3698.5,3697.5,0.5691]
[1753477604412,0.4577,3698.3,3697.5,0.5691]
[1753477604568,2.529,3698.2,3697.6,2.84416783]
[1753477604771,3.4577,3698.1,3697.4,0.8285]
[1753477604967,3.0,3697.9,3697.8,0.1352]
[1753477605371,6.63423754,3697.9,3697.8,0.1352]
[1753477605601,3.93,3697.9,3697.8,0.1352]
[1753477608536,3.458,3697.9,3697.8,0.1352]
[1753477609747,6.458,3697.9,3697.8,0.1352]
[1753477611338,3.93,3697.9,3697.8,0.1352]
[1753477611656,6.458,3697.9,3697.8,0.1352]
[1753477612141,2.70437305,3697.8,3697.5,0.1352]
[1753477612346,2.528,3697.7,3697.5,0.1352]
[1753477612648,3.4572,3697.7,3697.5,0.1352]
[1753477612941,0.4772,3697.6,3697.5,0.1352]
[1753477613249,3.0052,3697.6,3697.5,0.1352]
[1753477613443,0.4772,3697.6,3697.5,0.1352]
[1753477613630,3.4572,3697.6,3697.5,0.1352]
[1753477614404,0.9292,3697.6,3697.5,0.1352]
[1753477614637,3.0052,3697.6,3697.5,0.1352]
[1753477614863,3.0052,3697.6,3696.3,1.7574]
[1753477614864,3.0,3697.4,3696.3,1.7574]
[1753477615138,2.70479803,3697.2,3696.4,2.70533492]
[1753477615342,2.70489586,3697.0,3696.4,0.71681554]
[1753477615543,2.528,3696.9,3696.1,2.70554453]
[1753477615744,5.23301619,3696.9,3696.1,2.70554453]
[1753477615947,2.70511567,3696.7,3696.0,0.7595]
[1753477616139,3.53652255,3697.0,3696.1,0.71380953]
[1753477616140,3.03126596,3696.6,3696.1,0.71380953]
[1753477616305,0.9292,3696.5,3696.1,0.71380953]
[1753477616509,2.527,3696.4,3696.1,0.71380953]
[1753477616706,3.0042,3696.4,3696.1,0.71380953]
[1753477616963,3.0042,3696.4,3696.0,0.7595]
[1753477619952,2.527,3696.4,3695.9,2.705698]
[1753477620251,2.527,3696.3,3696.0,3.67280666]
[1753477620552,2.527,3696.2,3696.0,0.9672]
[1753477620772,0.4772,3696.6,3696.1,2.7055545]
[1753477621065,2.527,3696.5,3696.2,0.63783931]
[1753477621361,2.527,3696.5,3696.2,1.60503931]
[1753477622118,0.4772,3696.4,3695.9,0.9672]
[1753477622322,0.4772,3696.3,3695.9,3.67289842]
[1753477622531,2.527,3696.2,3695.9,3.67289842]
[1753477622942,2.527,3696.2,3695.9,0.9672]
[1753477623148,2.527,3696.2,3696.0,0.44325469]
[1753477623330,2.527,3696.2,3696.1,2.7055545]
[1753477623550,2.527,3696.2,3696.0,3.14885625]
[1753477624328,2.527,3696.2,3696.0,0.44325469]
[1753477624558,2.527,3696.2,3695.9,0.4685]
[1753477624860,2.527,3696.2,3696.1,0.1352]
[1753477625526,3.0042,3696.2,3696.1,0.1352]
[1753477625927,3.4562,3696.2,3696.1,0.1352]
[1753477626448,3.4562,3696.2,3695.2,2.528]
[1753477626449,6.18874726,3696.2,3695.3,2.70612361]
[1753477626768,3.66182046,3696.1,3696.0,0.1352]
[1753477626922,2.70570796,3695.9,3695.1,3.96146171]
[1753477627273,3.0032,3695.8,3695.1,3.96146171]
[1753477627564,0.8106,3695.6,3694.8,4.2]
[1753477627747,0.4772,3695.5,3694.9,0.49565]
[1753477627936,2.526,3695.4,3694.9,3.20205347]
[1753477628143,0.4772,3695.3,3694.9,3.20205347]
[1753477628464,0.4772,3695.3,3695.0,2.70635105]
[1753477628662,2.526,3695.4,3695.2,0.1352]
[1753477630628,0.95626596,3695.3,3695.2,0.1352]
[1753477630826,0.9292,3695.3,3695.2,0.1352]
[1753477632662,0.4772,3695.3,3695.2,0.1352]
[1753477633329,3.0032,3695.3,3695.2,0.1352]
[1753477636438,3.0,3695.8,3695.2,0.1352]
[1753477636663,0.4772,3695.5,3695.2,0.1352]
[1753477636874,2.70593761,3695.6,3695.4,0.1352]
[1753477637057,3.63513761,3695.6,3695.4,0.1352]
[1753477637235,0.4772,3695.5,3695.4,0.1352]
[1753477637929,0.9292,3695.5,3695.4,0.1352]
[1753477638760,0.4772,3695.5,3695.4,0.1352]
[1753477639134,3.4552,3695.7,3695.4,0.1352]
[1753477639449,2.526,3695.6,3695.4,3.96891645]
[1753477639659,2.526,3695.6,3695.5,0.9672]
[1753477639861,2.526,3695.6,3695.5,0.1352]
[1753477640070,3.0135,3695.6,3695.5,0.1352]
[1753477640365,3.4477,3695.6,3695.5,0.1352]
[1753477640537,3.0135,3695.6,3695.5,0.1352]
[1753477641343,2.526,3695.6,3695.5,0.1352]
[1753477641786,3.0135,3695.6,3695.5,0.1352]
[1753477642270,3.4477,3695.6,3695.5,0.1352]
[1753477643946,2.526,3695.6,3695.5,0.1352]
[1753477644153,0.4875,3695.8,3695.5,0.1352]
[1753477644346,2.525,3695.7,3695.5,0.9636]
[1753477644539,2.525,3695.7,3695.6,1.0332]
[1753477644737,0.8024,3696.2,3695.6,0.1352]
[1753477644934,0.1352,3696.4,3695.6,0.1352]
[1753477645136,3.51555465,3696.8,3695.7,0.898]
[1753477645350,2.525,3696.7,3696.5,0.1352]
[1753477645535,3.0,3696.6,3696.5,0.1352]
[1753477645735,5.525,3696.6,3696.5,0.1352]
[1753477646240,9.15188855,3696.6,3696.5,0.1352]
[1753477646648,6.4467,3696.6,3696.5,0.1352]
[1753477647969,9.15188855,3696.6,3696.5,0.1352]
[1753477648872,6.4467,3696.6,3696.5,0.1352]
[1753477649182,9.15188855,3696.6,3696.5,0.1352]
[1753477650555,6.4467,3696.6,3696.5,0.1352]
[1753477651076,9.15188855,3696.6,3696.5,0.1352]
[1753477651880,2.70546262,3696.3,3695.5,0.8284]
[1753477652043,3.51611173,3696.1,3695.0,0.4685]
[1753477652240,0.8105,3696.1,3695.9,0.1352]
[1753477652446,3.0,3696.5,3696.0,0.898]
[1753477652646,2.524,3696.4,3696.0,0.898]
[1753477652980,2.524,3696.4,3696.2,0.1352]
[1753477653181,2.70540811,3696.3,3696.2,0.1352]
[1753477653381,3.62710811,3696.3,3696.2,0.1352]
[1753477653555,0.4875,3696.3,3696.2,0.1352]
[1753477654585,3.13948172,3696.5,3696.2,0.1352]
[1753477654768,3.65082899,3696.7,3696.2,0.1352]
[1753477654769,2.524,3696.3,3696.2,0.1352]
[1753477655781,2.70511294,3696.8,3696.2,0.1352]
[1753477655782,3.8105,3696.9,3696.2,0.1352]
[1753477656005,3.0,3696.6,3696.3,0.4685]
[1753477656310,3.0,3696.6,3696.5,0.1352]
[1753477656606,5.523,3696.6,3696.5,0.1352]
[1753477656776,8.71568855,3696.6,3696.5,0.1352]
[1753477657410,9.14988855,3696.6,3696.5,0.1352]
[1753477657774,9.14990957,3696.6,3696.3,0.1352]
[1753477658724,0.4875,3696.5,3696.3,0.1352]
[1753477658889,5.523,3696.4,3696.3,0.1352]
[1753477659088,8.71583492,3696.4,3696.3,0.1352]
[1753477659308,6.4447,3696.4,3696.3,0.1352]
[1753477661281,6.0105,3696.4,3696.3,0.1352]
[1753477662580,8.71483492,3696.4,3696.3,0.1352]
[1753477662917,6.0095,3696.4,3696.3,0.1352]
[1753477663516,9.14903492,3696.4,3696.3,0.1352]
[1753477664210,6.4437,3696.4,3696.3,0.1352]
[1753477664813,9.14903492,3696.4,3696.3,0.1352]
[1753477664986,6.4437,3696.4,3696.3,0.1352]
[1753477665501,6.0095,3696.4,3696.3,0.1352]
[1753477666526,3.0,3696.4,3696.3,0.1352]
[1753477666693,5.522,3696.4,3696.3,0.1352]
[1753477668530,9.14903492,3696.4,3696.3,0.1352]
[1753477668902,3.8105,3696.3,3695.6,0.8284]
[1753477669102,3.0,3696.1,3695.3,0.8284]
[1753477669414,2.70576235,3695.9,3695.8,0.1352]
[1753477669803,3.62746235,3695.9,3695.8,0.1352]
[1753477670008,2.70595102,3695.6,3695.0,0.8284]
[1753477670215,2.521,3695.5,3695.0,0.8284]
[1753477670533,3.0148,3695.5,3695.0,0.8284]
[1753477670699,5.67619398,3695.5,3695.4,0.1352]
[1753477670900,9.1196526,3695.5,3694.2,0.8192]
[1753477671251,9.1196526,3695.5,3693.9,0.4288]
[1753477671252,2.70657969,3694.7,3693.9,3.53773697]
[1753477671417,5.22765295,3694.6,3694.5,0.1352]
[1753477671602,6.17065295,3694.6,3694.5,0.1352]
[1753477672700,2.70672621,3694.5,3694.4,0.1352]
[1753477672899,3.67679217,3694.5,3694.4,0.1352]
[1753477673498,3.64972621,3694.5,3693.5,2.70745261]
[1753477673704,2.70689555,3694.3,3694.2,0.1352]
[1753477674054,0.02706596,3694.3,3694.2,0.1352]
[1753477674349,4.2187,3694.4,3694.2,0.1352]
[1753477675052,1.6977,3694.4,3694.2,0.1352]
[1753477675252,0.1352,3694.7,3694.2,0.1352]
[1753477675253,2.521,3694.3,3694.2,0.1352]
[1753477676252,0.7547,3695.2,3694.3,3.53746644]
[1753477676545,2.70643319,3694.9,3694.2,0.1352]
[1753477676749,3.0148,3694.8,3694.7,0.1352]
[1753477677112,3.464,3694.8,3694.7,0.1352]
[1753477677308,6.1975724,3694.8,3694.7,0.1352]
[1753477677563,6.80661429,3694.8,3694.0,0.7906]
[1753477677777,1.764,3694.7,3694.4,0.1352]
[1753477677951,3.0,3694.8,3694.4,0.1352]
[1753477678273,2.521,3694.7,3694.5,1.7183]
[1753477678470,2.521,3694.6,3694.5,1.7183]
[1753477678768,2.521,3694.6,3694.5,0.7906]
[1753477678918,2.521,3694.6,3694.2,0.4288]
[1753477679113,2.521,3694.6,3694.3,3.80640007]
[1753477679313,2.521,3694.6,3694.3,1.09953]
[1753477679616,2.521,3694.6,3694.2,2.70693287]
[1753477679817,2.521,3694.6,3694.2,3.63463287]
[1753477680053,2.521,3694.6,3694.3,0.9277]
[1753477680361,2.521,3694.5,3694.4,0.4288]
[1753477680541,2.521,3694.5,3694.4,0.9277]
[1753477680744,0.4938,3695.2,3694.4,1.64091235]
[1753477680946,3.0,3695.0,3694.5,2.70669435]
[1753477681122,2.52,3694.9,3694.7,2.70652092]
[1753477681321,3.0,3695.4,3695.0,0.7801]
[1753477681545,3.0,3695.2,3695.0,0.7801]
[1753477681730,3.0,3695.2,3695.1,0.9277]
[1753477682453,3.0,3695.2,3694.4,6.86266495]
[1753477682454,3.4938,3695.2,3694.3,0.7801]
[1753477682749,3.0,3695.0,3694.7,2.70651329]
[1753477682952,3.0,3695.5,3694.8,1.7078]
[1753477683151,3.898,3695.6,3695.0,2.70635994]
[1753477683352,2.52,3695.5,3695.3,2.7060808]
[1753477683654,3.0,3695.7,3695.4,1.56441304]
[1753477683821,2.52,3695.6,3695.4,1.56441304]
[1753477684021,2.52,3695.6,3695.0,3.48645786]
[1753477684223,2.52,3695.6,3695.3,2.70613115]
[1753477684621,2.52,3695.6,3695.3,3.63383115]
[1753477685052,3.0,3696.0,3695.4,0.9277]
[1753477685252,3.0,3695.8,3695.4,0.9277]
[1753477685448,3.0,3695.8,3695.5,0.9277]
[1753477686441,3.0,3696.1,3695.6,1.7471]
[1753477686747,3.0,3696.2,3695.7,3.63350086]
[1753477686947,2.52,3696.1,3695.9,2.70564156]
[1753477687170,2.52,3696.0,3695.9,2.70564156]
[1753477687869,2.52,3696.0,3695.9,3.63334156]
[1753477688072,2.52,3696.0,3695.9,3.76854156]
[1753477688275,2.52,3696.0,3695.9,4.49791939]
[1753477688481,2.52,3696.0,3695.9,5.31731939]
[1753477689295,2.52,3696.0,3695.9,2.61167783]
[1753477689789,2.52,3696.0,3695.9,0.9546]
[1753477690787,2.52,3696.0,3695.9,1.4535]
[1753477690989,2.52,3696.0,3695.9,0.9546]
[1753477693270,2.173702,3696.0,3695.9,0.9546]
[1753477694857,2.173702,3696.0,3695.9,4.58800091]
[1753477695052,2.173702,3696.0,3695.9,2.61168314]
[1753477695257,2.173702,3696.0,3695.9,0.9546]
[1753477696577,2.173702,3696.0,3695.9,0.1352]
[1753477697090,2.518,3696.0,3695.9,0.1352]
[1753477697594,4.2742,3696.0,3695.2,6.90615065]
[1753477697783,0.4938,3695.9,3695.6,0.1352]
[1753477697986,0.4938,3695.9,3695.8,0.1352]
[1753477698192,3.19950091,3695.9,3695.8,0.1352]
[1753477698362,3.64870091,3695.9,3695.8,0.1352]
[1753477708798,0.943,3695.9,3695.8,0.1352]
[1753477709297,3.64870091,3695.9,3695.8,0.1352]
[1753477711019,0.943,3695.9,3695.8,0.1352]
[1753477711428,3.64870091,3695.9,3695.8,0.1352]
[1753477712125,0.943,3695.9,3695.8,0.1352]
[1753477712492,3.64870091,3695.9,3695.8,0.1352]
[1753477717811,2.70598645,3695.6,3695.1,1.2939]
[1753477718018,2.9728,3695.5,3695.1,4.00017367]
[1753477718316,2.516,3695.4,3695.2,4.0397823]
[1753477718520,2.516,3695.4,3695.3,0.9336]
[1753477718725,2.516,3695.4,3695.3,1.0688]
[1753477720546,2.516,3695.4,3695.3,3.77494023]
[1753477720832,2.516,3695.6,3695.3,4.54608049]
[1753477720997,2.516,3695.6,3695.5,2.7059452]
[1753477721203,2.516,3695.6,3695.5,3.7747452]
[1753477721404,2.516,3695.7,3695.5,3.7747452]
[1753477721642,2.516,3695.7,3695.6,0.9336]
[1753477722135,2.516,3695.7,3695.6,3.63952055]
[1753477723039,2.516,3696.2,3695.8,2.70572569]
[1753477723198,2.516,3696.2,3696.0,2.70562334]
[1753477723402,2.516,3696.2,3696.1,1.0688]
[1753477723942,2.516,3696.2,3696.1,0.1352]
[1753477724517,2.516,3696.2,3696.1,1.0688]
[1753477725040,2.516,3696.3,3696.2,2.70543934]
[1753477725242,0.4568,3696.8,3696.3,2.70539288]
[1753477725453,2.9718,3696.7,3696.2,3.63905878]
[1753477725655,0.9228,3696.6,3696.1,0.64801769]
[1753477725949,0.9228,3696.5,3696.0,2.70560654]
[1753477726167,0.4568,3696.4,3696.0,2.70560654]
[1753477726465,0.4568,3696.4,3696.1,2.7055358]
[1753477726630,0.4568,3696.4,3696.3,0.1352]
[1753477727529,3.4568,3696.6,3696.3,2.84060344]
[1753477727952,3.4568,3696.6,3696.5,0.1352]
[1753477728351,6.65505451,3696.6,3696.5,0.1352]
[1753477728550,6.62798855,3696.6,3696.5,0.1352]
[1753477730661,2.515,3696.6,3696.5,0.1352]
[1753477730964,2.515,3696.6,3696.5,1.043]
[1753477731273,2.515,3696.6,3696.5,0.1352]
[1753477732475,5.9976,3696.6,3696.5,0.1352]
[1753477733370,3.4826,3696.6,3696.5,0.1352]
[1753477733572,5.514,3696.6,3696.5,0.1352]
[1753477733782,5.514,3696.6,3696.5,0.78057608]
[1753477733962,5.514,3696.6,3696.5,1.043]
[1753477734271,5.514,3696.6,3696.5,0.1352]
[1753477735345,5.514,3696.6,3696.5,1.043]
[1753477736076,2.514,3696.6,3696.5,3.74826173]
[1753477736387,2.514,3696.6,3696.5,4.54336173]
[1753477736559,2.514,3696.6,3696.5,5.26823649]
[1753477738068,2.514,3696.8,3696.6,2.70512457]
[1753477738249,2.514,3696.8,3696.6,0.4431]
[1753477738450,2.514,3696.8,3696.7,0.1352]
[1753477738858,2.514,3696.8,3696.7,2.84031537]
[1753477739059,1.2676,3697.7,3697.0,2.704894]
[1753477739305,0.785,3698.6,3697.6,2.70440908]